bitfinex-derivatives/quotes_BTCF0:USTF0_20241003
["timestamp","ask_amount","ask_price","bid_price","bid_amount"]
[1727950447582,0.082284,60768.0,60764.0,0.37065931]
[1727950448177,0.082286,60767.0,60764.0,0.37065931]
[1727950448973,0.082286,60767.0,60764.0,0.36965931]
[1727950449583,0.084286,60767.0,60764.0,0.36965931]
[1727950451467,0.084286,60767.0,60764.0,0.3608]
[1727950451672,0.084286,60767.0,60766.0,0.12]
[1727950451875,0.15636852,60767.0,60766.0,0.12]
[1727950452977,0.07408252,60767.0,60766.0,0.12]
[1727950453174,0.07408252,60767.0,60766.0,0.121]
[1727950453370,0.14935247,60767.0,60766.0,0.121]
[1727950453684,0.12459098,60767.0,60766.0,0.121]
[1727950453980,0.12759098,60767.0,60766.0,0.121]
[1727950454281,0.14757388,60775.0,60767.0,0.49368]
[1727950454475,0.14757388,60776.0,60774.0,0.12]
[1727950454674,0.14757388,60777.0,60775.0,0.0309]
[1727950454977,0.14757388,60779.0,60776.0,0.12]
[1727950455482,0.19807312,60777.0,60776.0,0.12]
[1727950455683,0.19807312,60777.0,60776.0,0.19]
[1727950456483,0.05049924,60777.0,60776.0,0.19]
[1727950457187,0.05049924,60777.0,60776.0,0.191]
[1727950457483,0.05049924,60777.0,60776.0,0.192]
[1727950457972,0.05049924,60777.0,60776.0,0.191]
[1727950458170,0.05049924,60777.0,60776.0,0.192]
[1727950458776,0.16372496,60777.0,60776.0,0.192]
[1727950458978,0.14786637,60777.0,60776.0,0.5528]
[1727950459178,0.05049924,60777.0,60776.0,0.5528]
[1727950459783,0.0024689,60778.0,60776.0,0.67816951]
[1727950460090,0.0024689,60778.0,60776.0,1.67463374]
[1727950460986,0.0034689,60778.0,60776.0,1.67463374]
[1727950461188,0.0034689,60778.0,60776.0,1.67363374]
[1727950461486,0.0034689,60778.0,60776.0,1.62220496]
[1727950462990,0.0034689,60778.0,60776.0,1.26140496]
[1727950465179,0.001,60778.0,60776.0,1.26140496]
[1727950466494,0.001,60778.0,60777.0,0.06542452]
[1727950466895,0.09178738,60778.0,60776.0,1.26224496]
[1727950467079,0.09178738,60778.0,60776.0,1.07140496]
[1727950467080,0.09078738,60777.0,60776.0,1.07140496]
[1727950467280,0.17305938,60777.0,60776.0,0.03140496]
[1727950467489,0.23505938,60777.0,60776.0,0.03040496]
[1727950467685,0.41562334,60777.0,60776.0,0.03040496]
[1727950468189,0.23505938,60777.0,60776.0,0.02940496]
[1727950468381,0.15278738,60777.0,60772.0,0.3608]
[1727950468579,0.082275,60775.0,60772.0,0.3608]
[1727950468788,0.09078738,60774.0,60772.0,0.3608]
[1727950468994,0.09079508,60773.0,60772.0,0.3608]
[1727950469382,0.17307208,60773.0,60772.0,0.3608]
[1727950469596,0.09079508,60773.0,60768.0,1.04084]
[1727950469785,0.09079508,60773.0,60764.0,0.3608]
[1727950469786,0.082284,60768.0,60764.0,0.3608]
[1727950469979,0.09079508,60767.0,60764.0,0.3608]
[1727950470184,0.082284,60768.0,60764.0,0.3608]
[1727950470185,0.09079508,60766.0,60764.0,1.4008]
[1727950470386,0.082284,60768.0,60764.0,1.43044411]
[1727950470387,0.09079508,60765.0,60764.0,1.43044411]
[1727950470796,0.09079508,60765.0,60764.0,1.43344411]
[1727950472992,0.09079508,60765.0,60764.0,0.39344411]
[1727950474900,0.082287,60766.0,60764.0,0.39344411]
[1727950475094,0.082287,60766.0,60765.0,0.06547661]
[1727950477302,0.082287,60766.0,60765.0,0.001]
[1727950481293,0.633087,60766.0,60765.0,0.001]
[1727950481498,0.563087,60766.0,60765.0,0.001]
[1727950483599,0.633087,60766.0,60765.0,0.001]
[1727950483792,0.696887,60766.0,60765.0,0.001]
[1727950488708,0.443087,60766.0,60765.0,0.191]
[1727950489008,0.082287,60766.0,60765.0,0.191]
[1727950496610,0.12258673,60766.0,60765.0,0.191]
[1727950496815,0.082287,60766.0,60765.0,0.191]
[1727950497208,0.082287,60766.0,60765.0,0.001]
[1727950501618,0.766007,60766.0,60765.0,0.001]
[1727950503023,0.272287,60766.0,60765.0,0.001]
[1727950504933,0.42213546,60766.0,60765.0,0.001]
[1727950505514,0.35213546,60766.0,60765.0,0.001]
[1727950505923,0.23213542,60766.0,60765.0,0.001]
[1727950506122,0.17310582,60766.0,60765.0,0.176488]
[1727950506517,0.17310582,60766.0,60765.0,1.1342]
[1727950507119,0.17310582,60766.0,60765.0,0.0942]
[1727950507922,0.09081982,60766.0,60765.0,0.0942]
[1727950508124,0.09081982,60766.0,60765.0,0.176488]
[1727950508328,0.09081982,60766.0,60765.0,0.0942]
[1727950508936,0.19045589,60771.0,60765.0,1.54872]
[1727950509118,0.0054,60779.0,60770.0,0.19]
[1727950509331,0.0054,60779.0,60766.0,0.49368]
[1727950509332,0.0339,60785.0,60776.0,0.19]
[1727950509522,0.08227,60778.0,60776.0,0.19]
[1727950509922,0.0301,60785.0,60776.0,0.19]
[1727950509923,0.082272,60777.0,60776.0,0.19]
[1727950511020,0.082272,60777.0,60770.0,0.001]
[1727950511021,0.082272,60777.0,60772.0,0.19]
[1727950511228,0.082277,60773.0,60772.0,0.19]
[1727950512433,0.082277,60773.0,60772.0,0.21917348]
[1727950512628,0.082277,60773.0,60772.0,0.22017348]
[1727950512826,0.083277,60773.0,60772.0,0.22017348]
[1727950515337,0.083277,60773.0,60772.0,0.03017348]
[1727950515632,0.273277,60773.0,60772.0,0.001]
[1727950515835,0.766917,60773.0,60772.0,0.001]
[1727950517334,0.082281,60770.0,60769.0,0.02988769]
[1727950517830,0.575961,60770.0,60769.0,0.02988769]
[1727950518025,0.082291,60763.0,60762.0,0.0038]
[1727950518338,0.575961,60770.0,60759.0,1.4008]
[1727950518339,0.082294,60761.0,60759.0,1.43134986]
[1727950518646,0.082295,60760.0,60759.0,1.43050986]
[1727950518843,0.082295,60760.0,60759.0,0.39050986]
[1727950519929,0.04112169,60760.0,60759.0,0.45998647]
[1727950520128,0.04112169,60760.0,60759.0,0.03370986]
[1727950520330,0.082299,60757.0,60756.0,0.04913567]
[1727950520528,0.0823,60756.0,60755.0,0.04913567]
[1727950520730,0.082301,60755.0,60752.0,0.04913567]
[1727950521232,0.082301,60755.0,60754.0,0.03172794]
[1727950522440,0.082301,60755.0,60754.0,0.04072794]
[1727950522626,0.082301,60755.0,60754.0,0.04672794]
[1727950523730,0.082299,60757.0,60754.0,0.04672794]
[1727950523929,0.082299,60757.0,60756.0,0.19]
[1727950525146,0.082299,60757.0,60756.0,0.194]
[1727950526347,0.082299,60757.0,60756.0,0.201]
[1727950530061,0.082294,60761.0,60756.0,0.69476]
[1727950530249,0.082294,60761.0,60760.0,0.19]
[1727950530759,0.082294,60761.0,60760.0,1.23]
[1727950531147,0.3608,60763.0,60760.0,1.23]
[1727950531354,0.082288,60765.0,60760.0,1.23]
[1727950531563,0.13132885,60769.0,60764.0,0.19]
[1727950531754,0.443082,60770.0,60769.0,0.19]
[1727950531952,0.48338003,60770.0,60769.0,0.19]
[1727950533047,0.48838003,60770.0,60769.0,0.001]
[1727950534346,0.48938003,60770.0,60769.0,0.001]
[1727950534955,0.449082,60770.0,60769.0,0.001]
[1727950535656,0.449082,60770.0,60769.0,0.0307025]
[1727950535961,0.449082,60770.0,60769.0,0.001]
[1727950537151,0.480682,60770.0,60769.0,0.001]
[1727950539158,0.082289,60764.0,60763.0,0.02969064]
[1727950539351,0.082291,60763.0,60762.0,0.04909761]
[1727950539863,0.082292,60762.0,60761.0,0.04909761]
[1727950540863,0.082298,60758.0,60756.0,0.0038]
[1727950541061,0.082298,60758.0,60754.0,0.08477161]
[1727950541259,0.082299,60757.0,60754.0,0.08477161]
[1727950541460,0.082298,60758.0,60754.0,0.08477161]
[1727950541758,0.21948314,60766.0,60754.0,0.00246861]
[1727950541958,0.082301,60755.0,60754.0,0.00246861]
[1727950542756,0.082301,60755.0,60754.0,0.04017408]
[1727950543666,0.082301,60755.0,60754.0,0.03770547]
[1727950544264,0.082301,60755.0,60754.0,0.02970547]
[1727950544465,0.082301,60755.0,60754.0,0.015]
[1727950545765,0.17312749,60755.0,60754.0,0.015]
[1727950546064,0.23004577,60755.0,60754.0,0.015]
[1727950546265,0.12260685,60755.0,60754.0,0.015]
[1727950546668,0.21379693,60755.0,60754.0,0.015]
[1727950546960,0.27054461,60755.0,60754.0,0.015]
[1727950547161,0.32106722,60755.0,60754.0,0.015]
[1727950547363,0.35216722,60755.0,60754.0,0.015]
[1727950548366,0.15370685,60755.0,60754.0,0.015]
[1727950549664,0.20423081,60755.0,60754.0,0.015]
[1727950549867,0.20423081,60755.0,60754.0,0.1404378]
[1727950549868,0.27754467,60755.0,60754.0,0.1404378]
[1727950551573,0.16414367,60755.0,60754.0,0.29310804]
[1727950551866,0.24644467,60755.0,60754.0,0.29310804]
[1727950553070,0.16414367,60755.0,60754.0,0.29310658]
[1727950553373,0.16414367,60755.0,60754.0,0.37540588]
[1727950554066,0.16414367,60755.0,60754.0,0.29310288]
[1727950555359,0.082296,60759.0,60754.0,0.29310288]
[1727950555559,0.082296,60759.0,60758.0,0.28846779]
[1727950555759,0.082296,60759.0,60758.0,0.41390559]
[1727950556864,0.12259973,60759.0,60758.0,0.19]
[1727950557372,0.082301,60755.0,60754.0,0.205]
[1727950557570,0.12260473,60755.0,60754.0,0.196]
[1727950558106,0.12260473,60755.0,60754.0,0.19]
[1727950558768,0.04030373,60755.0,60754.0,0.19]
[1727950558960,0.04030373,60756.0,60754.0,0.196]
[1727950559562,0.17176249,60756.0,60754.0,0.205]
[1727950559861,0.04030488,60755.0,60754.0,0.205]
[1727950560573,0.23873149,60756.0,60754.0,0.196]
[1727950560764,0.09082343,60755.0,60754.0,0.205]
[1727950561074,0.09082343,60755.0,60754.0,0.199]
[1727950561273,0.09082343,60755.0,60754.0,0.205]
[1727950562470,0.32103249,60755.0,60754.0,0.205]
[1727950562664,0.32103168,60755.0,60754.0,0.205]
[1727950564065,0.17312362,60755.0,60754.0,0.205]
[1727950564664,0.14794,60755.0,60754.0,0.205]
[1727950564871,0.16434229,60758.0,60754.0,0.5978846]
[1727950565071,0.16434229,60758.0,60756.0,0.11479872]
[1727950565277,0.16434229,60758.0,60757.0,0.98122585]
[1727950565482,0.444689,60764.0,60757.0,2.62122585]
[1727950565668,0.444689,60764.0,60761.0,0.19]
[1727950565973,0.444689,60764.0,60762.0,0.27808588]
[1727950566181,0.443089,60764.0,60763.0,0.27808588]
[1727950567167,0.082289,60764.0,60763.0,0.27808588]
[1727950567364,0.082289,60764.0,60763.0,0.27805637]
[1727950569078,0.085289,60764.0,60763.0,0.27805637]
[1727950569782,0.082289,60764.0,60763.0,0.27805637]
[1727950569970,0.086289,60764.0,60763.0,0.27805637]
[1727950570985,0.004,60764.0,60763.0,0.30797527]
[1727950571667,0.082285,60767.0,60763.0,0.30797527]
[1727950571867,0.082285,60767.0,60766.0,0.19]
[1727950573469,0.088285,60767.0,60766.0,0.191]
[1727950575084,0.089285,60767.0,60766.0,0.22109379]
[1727950575271,0.089285,60767.0,60766.0,0.03109379]
[1727950575483,1.182965,60767.0,60762.0,0.04924021]
[1727950575772,0.3608,60763.0,60758.0,0.04924021]
[1727950575971,0.3608,60763.0,60751.0,0.08205966]
[1727950575972,0.19,60760.0,60754.0,0.04924021]
[1727950576176,0.19,60754.0,60752.0,0.04924021]
[1727950576383,0.0626,60753.0,60751.0,0.04924021]
[1727950576679,0.082305,60752.0,60751.0,0.04924021]
[1727950577877,0.082305,60752.0,60749.0,0.06564772]
[1727950579081,0.082307,60751.0,60749.0,0.07964772]
[1727950579477,0.082308,60750.0,60749.0,0.09064772]
[1727950579872,0.082308,60750.0,60749.0,0.025]
[1727950580484,0.082308,60750.0,60749.0,0.014]
[1727950580678,0.082308,60750.0,60749.0,0.025]
[1727950586893,0.082308,60750.0,60749.0,0.24890937]
[1727950587299,0.082308,60750.0,60749.0,0.15043778]
[1727950588110,0.0313,60757.0,60749.0,0.15043778]
[1727950588297,0.0641,60762.0,60756.0,0.19]
[1727950588589,0.146392,60762.0,60761.0,0.08202861]
[1727950588791,0.146392,60762.0,60761.0,0.31543778]
[1727950589292,0.146392,60762.0,60761.0,0.12543778]
[1727950589989,0.49372,60761.0,60760.0,2.6e-07]
[1727950590298,0.082297,60758.0,60752.0,0.0038]
[1727950590499,0.082305,60752.0,60751.0,0.09845676]
[1727950590995,0.0307,60752.0,60750.0,0.09846661]
[1727950591198,0.113005,60752.0,60751.0,0.09846661]
[1727950591591,0.082307,60751.0,60750.0,0.09846661]
[1727950591794,0.0307,60752.0,60750.0,0.09846661]
[1727950591996,0.113005,60752.0,60751.0,0.012]
[1727950592300,0.113005,60752.0,60751.0,0.11046661]
[1727950592990,0.113005,60752.0,60751.0,0.021]
[1727950593497,0.113005,60752.0,60751.0,0.009]
[1727950594294,0.113005,60752.0,60751.0,0.021]
[1727950594498,0.303005,60752.0,60751.0,0.021]
[1727950597106,0.113005,60752.0,60751.0,0.021]
[1727950600205,0.082305,60752.0,60751.0,0.021]
[1727950603306,0.082305,60752.0,60751.0,0.17222621]
[1727950603901,0.082305,60752.0,60751.0,0.2015244]
[1727950604299,0.443105,60752.0,60751.0,0.20158984]
[1727950604794,0.633105,60752.0,60751.0,0.29773604]
[1727950605011,0.633105,60752.0,60744.0,0.0038]
[1727950605012,1.726905,60752.0,60744.0,0.0038]
[1727950605214,0.082319,60742.0,60741.0,0.00626912]
[1727950605412,0.082324,60738.0,60737.0,0.11501231]
[1727950605705,0.082331,60733.0,60732.0,0.13119853]
[1727950605901,0.082331,60733.0,60732.0,0.17647148]
[1727950606710,0.082333,60732.0,60731.0,0.11509739]
[1727950606894,0.082333,60732.0,60731.0,0.2879087]
[1727950607411,0.082334,60731.0,60730.0,0.1757885]
[1727950607597,0.082334,60731.0,60730.0,0.34854766]
[1727950608002,0.068334,60731.0,60730.0,0.34854766]
[1727950608202,0.054334,60731.0,60730.0,0.34854766]
[1727950608405,0.054334,60731.0,60730.0,0.06069111]
[1727950608712,0.055334,60731.0,60730.0,0.07469111]
[1727950609009,0.055334,60731.0,60730.0,0.1897885]
[1727950609512,0.056334,60731.0,60730.0,0.1897885]
[1727950609813,0.056334,60731.0,60730.0,0.04329111]
[1727950609814,0.607134,60731.0,60730.0,0.04329111]
[1727950610109,0.635134,60731.0,60730.0,0.014]
[1727950610623,0.445134,60731.0,60730.0,0.014]
[1727950612713,0.635134,60731.0,60730.0,0.014]
[1727950614208,1.729134,60731.0,60730.0,0.014]
[1727950614911,0.082341,60726.0,60725.0,0.0038]
[1727950615107,0.082346,60722.0,60721.0,0.0038]
[1727950615313,0.082346,60722.0,60717.0,0.00247007]
[1727950615314,0.082352,60718.0,60717.0,0.00247007]
[1727950617608,0.083352,60718.0,60717.0,0.00347007]
[1727950617812,0.083352,60718.0,60717.0,0.02760579]
[1727950618214,0.001,60718.0,60717.0,0.02760579]
[1727950618410,0.083352,60718.0,60717.0,0.02760579]
[1727950618912,0.084352,60718.0,60717.0,0.02760579]
[1727950620017,0.084352,60718.0,60717.0,0.15182466]
[1727950621216,0.084352,60718.0,60717.0,0.15175744]
[1727950621813,0.03490928,60718.0,60717.0,0.15175744]
[1727950622016,0.001,60718.0,60717.0,0.15175744]
[1727950623230,0.19,60726.0,60717.0,0.15175744]
[1727950623522,0.19,60726.0,60722.0,0.08185575]
[1727950623523,0.082345,60723.0,60722.0,0.08185575]
[1727950623727,0.082345,60723.0,60722.0,0.2060074]
[1727950623915,0.082345,60723.0,60722.0,0.08185575]
[1727950624115,0.082345,60723.0,60722.0,0.12323035]
[1727950624618,0.444774,60731.0,60722.0,0.12323035]
[1727950624619,0.36244,60731.0,60722.0,0.31323035]
[1727950624814,0.082338,60729.0,60726.0,0.08184119]
[1727950625313,0.082338,60729.0,60727.0,1.04]
[1727950625513,0.082338,60729.0,60726.0,0.08184119]
[1727950625713,0.082338,60729.0,60726.0,0.27184119]
[1727950626018,0.082338,60729.0,60727.0,0.11434119]
[1727950626525,0.083338,60729.0,60727.0,0.11434119]
[1727950626726,0.083338,60729.0,60728.0,0.20482464]
[1727950626917,0.083338,60729.0,60728.0,0.20482301]
[1727950627225,0.083338,60729.0,60728.0,0.08184119]
[1727950627524,0.082338,60728.0,60727.0,0.11734119]
[1727950627714,0.082338,60728.0,60727.0,0.24038615]
[1727950627915,0.082338,60728.0,60727.0,0.23740283]
[1727950628223,0.082338,60728.0,60727.0,0.11434119]
[1727950628419,0.082338,60728.0,60727.0,0.23740913]
[1727950628625,0.083338,60728.0,60727.0,0.26448021]
[1727950628819,0.083338,60728.0,60727.0,0.2644726]
[1727950629324,0.083338,60728.0,60727.0,0.18263902]
[1727950629623,0.084338,60728.0,60727.0,0.18263902]
[1727950630820,0.002,60728.0,60727.0,0.18263902]
[1727950631413,0.002,60728.0,60727.0,0.28084744]
[1727950632022,0.002,60728.0,60727.0,0.05957108]
[1727950634422,0.002,60728.0,60727.0,0.14191008]
[1727950635115,0.002,60728.0,60727.0,0.05957108]
[1727950635317,0.002,60728.0,60727.0,0.02707108]
[1727950635622,0.084338,60728.0,60727.0,0.02707108]
[1727950636323,0.084338,60728.0,60727.0,0.07629114]
[1727950637034,0.084338,60728.0,60727.0,0.02707108]
[1727950637224,0.084338,60728.0,60727.0,0.0763158]
[1727950637417,0.084338,60728.0,60727.0,0.02707108]
[1727950639931,0.084338,60728.0,60727.0,0.29773081]
[1727950642833,0.274338,60728.0,60727.0,0.27365973]
[1727950643030,0.274338,60728.0,60727.0,0.22501415]
[1727950643231,0.336538,60728.0,60727.0,0.12647831]
[1727950643732,1.430538,60728.0,60727.0,0.12647831]
[1727950644030,1.430538,60728.0,60727.0,0.12664929]
[1727950644433,1.709,60728.0,60725.0,0.0821188]
[1727950644628,1.709,60728.0,60717.0,0.00627007]
[1727950644629,0.082349,60720.0,60719.0,0.09853584]
[1727950644836,0.576379,60727.0,60717.0,0.10100591]
[1727950644837,0.082352,60718.0,60717.0,0.10100591]
[1727950645037,0.272352,60718.0,60717.0,0.00247007]
[1727950646232,0.082352,60718.0,60717.0,0.00247007]
[1727950646422,0.083352,60718.0,60717.0,0.00247007]
[1727950647032,0.083352,60718.0,60717.0,0.051706]
[1727950648526,0.084352,60718.0,60717.0,0.00247007]
[1727950650031,0.084352,60718.0,60717.0,0.06813268]
[1727950650231,0.084352,60718.0,60717.0,0.00247007]
[1727950650631,0.084352,60718.0,60717.0,0.06813268]
[1727950650828,0.274352,60718.0,60717.0,0.00247007]
[1727950654243,0.084352,60718.0,60717.0,0.00247007]
[1727950655152,0.04314459,60718.0,60717.0,0.00247007]
[1727950655828,0.23314459,60718.0,60717.0,0.00247007]
[1727950656838,0.23314459,60718.0,60717.0,0.0680696]
[1727950657036,0.23314459,60718.0,60717.0,0.00247007]
[1727950658942,0.082353,60717.0,60716.0,0.06559953]
[1727950659240,0.002,60718.0,60710.0,0.09853584]
[1727950659542,0.08092723,60718.0,60716.0,0.19]
[1727950659733,0.1938,60727.0,60718.0,0.082351]
[1727950659934,0.082341,60726.0,60725.0,0.04917176]
[1727950660646,0.082347,60722.0,60719.0,0.0038]
[1727950660834,0.082347,60722.0,60720.0,0.12061837]
[1727950661038,0.082347,60722.0,60721.0,0.12061837]
[1727950661942,0.082346,60722.0,60721.0,0.12059974]
[1727950662141,0.083346,60722.0,60721.0,0.12059974]
[1727950662439,0.084346,60722.0,60721.0,0.12159974]
[1727950663543,0.084346,60722.0,60721.0,0.02513623]
[1727950664244,0.274346,60722.0,60721.0,0.02513623]
[1727950666142,0.274346,60722.0,60721.0,0.14586505]
[1727950666343,0.002,60722.0,60721.0,0.41821205]
[1727950666537,0.08234,60727.0,60721.0,0.41821205]
[1727950666732,0.08234,60727.0,60726.0,0.19]
[1727950667144,0.3608,60733.0,60726.0,0.19]
[1727950668048,0.002,60727.0,60726.0,0.192]
[1727950668848,0.084339,60727.0,60726.0,0.002]
[1727950669041,0.083339,60727.0,60726.0,0.002]
[1727950669345,0.082339,60727.0,60726.0,0.002]
[1727950669537,0.082339,60727.0,60722.0,0.19]
[1727950669738,0.083339,60727.0,60726.0,0.002]
[1727950671045,0.082342,60725.0,60722.0,0.19]
[1727950671351,0.082342,60725.0,60722.0,0.192]
[1727950671752,0.082342,60725.0,60722.0,0.19]
[1727950672344,0.083342,60725.0,60722.0,0.19]
[1727950672850,0.084342,60725.0,60722.0,0.192]
[1727950676154,0.002,60725.0,60722.0,0.192]
[1727950676346,0.082343,60724.0,60722.0,0.192]
[1727950676955,0.002,60725.0,60722.0,0.192]
[1727950678157,0.002,60724.0,60722.0,0.192]
[1727950678654,0.001,60724.0,60722.0,0.192]
[1727950678854,0.001,60725.0,60722.0,0.192]
[1727950679043,0.002,60725.0,60722.0,0.192]
[1727950679346,0.001,60724.0,60722.0,0.192]
[1727950679742,0.002,60724.0,60722.0,0.192]
[1727950681144,0.001,60724.0,60722.0,0.19]
[1727950681349,0.001,60724.0,60722.0,0.192]
[1727950681750,0.001,60724.0,60722.0,0.19]
[1727950681951,0.002,60724.0,60722.0,0.192]
[1727950683861,0.002,60724.0,60722.0,0.274346]
[1727950684857,0.002,60724.0,60722.0,1.314346]
[1727950685454,0.002,60724.0,60723.0,0.26402173]
[1727950686565,0.002,60724.0,60722.0,1.315186]
[1727950686857,0.002,60724.0,60722.0,0.192]
[1727950687062,0.0038,60734.0,60724.0,0.082342]
[1727950687063,0.082334,60731.0,60724.0,0.082342]
[1727950687265,0.082334,60731.0,60729.0,0.19]
[1727950687565,0.082335,60730.0,60729.0,0.19]
[1727950688455,0.082335,60730.0,60726.0,1.23084]
[1727950688763,0.083335,60730.0,60729.0,0.002]
[1727950692162,0.001,60730.0,60729.0,0.05123367]
[1727950692364,0.001,60730.0,60729.0,0.002]
[1727950692556,0.001,60730.0,60729.0,0.16324489]
[1727950692756,0.001,60730.0,60729.0,0.16333976]
[1727950693467,0.08859353,60740.0,60729.0,0.47640644]
[1727950693669,0.08479353,60740.0,60738.0,0.0985632]
[1727950693871,0.08479353,60740.0,60739.0,0.12042115]
[1727950694060,0.08479353,60740.0,60739.0,0.21898435]
[1727950694265,0.08479353,60740.0,60739.0,0.12042115]
[1727950694855,0.09279353,60740.0,60739.0,0.12042115]
[1727950695561,0.09879353,60740.0,60739.0,0.12042115]
[1727950695760,0.09879353,60740.0,60739.0,0.21892786]
[1727950696162,0.09879353,60740.0,60739.0,0.12042115]
[1727950696363,0.09879353,60740.0,60739.0,0.21890177]
[1727950696658,0.09879353,60740.0,60739.0,0.12042115]
[1727950699353,0.09879353,60740.0,60739.0,0.21890329]
[1727950699961,0.09879353,60740.0,60739.0,0.24215551]
[1727950700163,0.0576033,60740.0,60739.0,0.24215551]
[1727950701460,0.0576033,60740.0,60739.0,0.02325222]
[1727950701664,0.014,60740.0,60738.0,0.19]
[1727950701970,0.21390723,60739.0,60738.0,0.19]
[1727950702161,0.28602703,60739.0,60738.0,0.19]
[1727950703070,0.082326,60737.0,60732.0,0.3646]
[1727950703271,0.0721198,60736.0,60732.0,0.3608]
[1727950704658,0.0721198,60736.0,60735.0,0.19]
[1727950705072,0.082331,60733.0,60732.0,0.02373731]
[1727950705262,0.22180253,60733.0,60725.0,0.3646]
[1727950705461,0.07212325,60732.0,60725.0,0.3608]
[1727950705765,0.082338,60728.0,60725.0,0.3608]
[1727950705967,0.03180253,60727.0,60725.0,0.3608]
[1727950706673,0.03180659,60726.0,60725.0,0.3608]
[1727950706974,0.03180659,60726.0,60725.0,0.38441873]
[1727950707673,0.03180659,60726.0,60725.0,0.57441873]
[1727950707872,0.11514759,60726.0,60725.0,0.02361873]
[1727950708205,0.15547265,60726.0,60725.0,0.003]
[1727950708384,0.15547265,60726.0,60725.0,0.12290527]
[1727950708385,0.13388945,60726.0,60725.0,0.12290527]
[1727950708668,0.084341,60726.0,60725.0,0.22144328]
[1727950709069,0.084341,60726.0,60725.0,0.12290527]
[1727950709672,0.082349,60720.0,60719.0,0.0038]
[1727950709968,0.082349,60720.0,60710.0,0.00084]
[1727950709969,0.082357,60714.0,60712.0,0.0038]
[1727950710274,0.082357,60714.0,60708.0,0.22567002]
[1727950710275,0.082364,60709.0,60708.0,0.03567002]
[1727950710478,0.078564,60709.0,60708.0,0.03567002]
[1727950710775,0.078564,60709.0,60708.0,0.05882436]
[1727950711363,0.078564,60709.0,60708.0,0.14085014]
[1727950711676,0.079564,60709.0,60708.0,0.05882436]
[1727950711872,0.080564,60709.0,60708.0,0.14084985]
[1727950712067,0.080564,60709.0,60708.0,0.10764985]
[1727950712270,0.080564,60709.0,60708.0,0.08202549]
[1727950712467,0.002,60709.0,60706.0,0.19]
[1727950712778,0.002,60709.0,60707.0,0.08202549]
[1727950713074,0.44483,60719.0,60706.0,0.19]
[1727950713075,0.36252001,60719.0,60706.0,0.19]
[1727950713274,0.082344,60724.0,60718.0,0.19]
[1727950713472,0.082344,60724.0,60723.0,0.19]
[1727950713870,0.082336,60730.0,60723.0,0.27196733]
[1727950714069,0.082336,60730.0,60729.0,0.04913869]
[1727950714279,0.082336,60730.0,60727.0,0.25551825]
[1727950714581,0.082337,60729.0,60727.0,0.25551825]
[1727950714976,0.082337,60729.0,60727.0,0.06551825]
[1727950715170,0.082337,60729.0,60726.0,0.06551825]
[1727950715371,0.082337,60729.0,60727.0,0.06551825]
[1727950715771,0.082337,60729.0,60727.0,0.25551825]
[1727950716371,0.082337,60729.0,60728.0,0.0319]
[1727950716567,0.11414634,60729.0,60728.0,0.0319]
[1727950717681,0.12014634,60729.0,60728.0,0.0319]
[1727950718569,0.03780934,60729.0,60728.0,0.0319]
[1727950718774,0.006,60729.0,60728.0,0.0319]
[1727950719268,0.3608,60732.0,60728.0,0.05659925]
[1727950719478,0.3608,60732.0,60731.0,0.19]
[1727950721183,0.001,60729.0,60728.0,0.24559925]
[1727950721377,0.001,60729.0,60728.0,0.05559925]
[1727950721771,0.3608,60732.0,60728.0,0.05559925]
[1727950722376,0.3608,60732.0,60728.0,0.05659925]
[1727950722879,0.082335,60730.0,60728.0,0.05659925]
[1727950723474,0.082335,60730.0,60728.0,0.24659925]
[1727950723974,0.001,60729.0,60728.0,0.24659925]
[1727950724281,0.001,60729.0,60728.0,0.24559925]
[1727950724579,0.082335,60730.0,60728.0,0.24659925]
[1727950724784,0.083335,60730.0,60728.0,0.24659925]
[1727950725872,0.083335,60730.0,60728.0,0.24559925]
[1727950726069,0.083335,60730.0,60728.0,0.24659925]
[1727950726678,0.001,60729.0,60728.0,0.24659925]
[1727950727377,0.083335,60730.0,60728.0,0.24659925]
[1727950728087,0.082335,60730.0,60728.0,0.24659925]
[1727950728283,0.001,60729.0,60728.0,0.24659925]
[1727950728480,0.083337,60729.0,60728.0,0.24659925]
[1727950729786,0.082337,60729.0,60728.0,0.24659925]
[1727950730886,0.083337,60729.0,60728.0,0.24659925]
[1727950731476,0.083337,60729.0,60726.0,0.3608]
[1727950731477,0.20600667,60729.0,60726.0,0.29431729]
[1727950731683,0.12266967,60728.0,60726.0,0.3174714]
[1727950731885,0.12266967,60727.0,60726.0,0.3174714]
[1727950732793,0.12266967,60727.0,60726.0,0.5084714]
[1727950733685,0.12366951,60727.0,60726.0,0.5084714]
[1727950734280,0.12366951,60727.0,60726.0,0.5074714]
[1727950734485,0.12466951,60727.0,60726.0,0.5074714]
[1727950734895,0.20600851,60727.0,60726.0,0.5074714]
[1727950735076,0.20700851,60727.0,60726.0,0.5074714]
[1727950735894,0.12466951,60727.0,60726.0,0.5898124]
[1727950736585,0.05905688,60735.0,60726.0,0.5898124]
[1727950736586,0.05905688,60735.0,60726.0,1.1074714]
[1727950736787,0.21362322,60745.0,60737.0,0.082325]
[1727950736992,0.082318,60743.0,60740.0,0.272322]
[1727950737195,0.082318,60743.0,60740.0,0.19]
[1727950737491,0.082315,60746.0,60743.0,0.082317]
[1727950737685,0.082315,60746.0,60745.0,0.19]
[1727950738590,0.095315,60746.0,60745.0,0.19]
[1727950739384,0.106315,60746.0,60745.0,0.19]
[1727950740188,0.108315,60746.0,60745.0,0.19]
[1727950740387,0.026,60746.0,60743.0,0.082317]
[1727950740591,0.026,60746.0,60742.0,0.10642372]
[1727950740790,0.026,60746.0,60743.0,0.19]
[1727950741396,0.082317,60744.0,60743.0,0.19]
[1727950741690,0.025,60746.0,60745.0,0.082315]